Cogmind - Beta 11.2 @@@ ROGUE MODE // 2023.01.25 @ 20:39:30 Player: ktur Result: Destroyed by G-73 Enforcer with Phase Gun Performance ------------- Evolutions (8) 4000 Regions Visited (32) 6400 Robots Destroyed (92) 460 Value Destroyed (2669) 2669 Prototype IDs (122) 2440 Alien Tech Used (4) 800 Bonus (2511) 2511 TOTAL SCORE: 19280 Bonus ------- High Alert Combat Kills 65 Follower Combat Kills 2635 Network Hubs Disabled 200 Aligned with FarCom 300 Met Data Miner 300 Met Imprinter 300 Was Imprinted 300 Met Zhirov 300 Built Enhanced Grunts 300 A7 Reached Mainframe 300 Friendly Fire -2489 Cogmind --------- Core Integrity 0/1450 Matter 168/300 Energy 98/100 System Corruption 9% Temperature Cool (0) Movement Core (50) Location -2/Section 7 Parts ------- > --- POWER (2) -------- (None) > --- PROPULSION (8) --- (None) > --- UTILITY (11) ----- Advanced Signal Interpreter 0b10 Decoder Chip [Skirmisher] > --- WEAPON (3) ------- (None) > --- INVENTORY (5) ---- Light Quantum Reactor Advanced Energy Well (500) Terrabomb Core Stripper Peak State ------------ > --- POWER ------------ Light Particle Reactor Micro Antimatter Reactor > --- PROPULSION ------- Cooled Field Propulsion Drive Cooled Field Propulsion Drive Cooled Field Propulsion Drive Field Propulsion Array Field Propulsion Array Diametric Drive > --- UTILITY ---------- Lightpack 2.0 Advanced Gravity Neutralizer Long-range Sensor Array Advanced Signal Interpreter 0b10 Decoder Chip [Skirmisher] Improved Cloaking Device Centrium Medium Armor Plating Zionite Shade Armor Experimental Hacking Suite > --- WEAPON ----------- Improved Plasma Cutter Vibroblade CR-A16's Behemoth Slayer > --- INVENTORY -------- Diametric Drive Diametric Drive Diametric Drive Diametric Drive Advanced Energy Well Advanced Energy Well Experimental Energy Well Advanced Transmission Jammer Advanced ECM Suite Experimental Hardlight Generator Antimissile System Antimissile System Advanced Component Analysis Suite Improved Trap Extractor Omega Cannon Missile Launcher Improved Datajack RU-N14's Throwing Claymores [Rating: 205] Favorites ----------- Power Ion Engine Engine Ion Engine Power Core Light Nuclear Core Reactor Micro Antimatter Reactor Propulsion Improved Flight Unit Treads Light Treads Wheel Compact Wheel Hover Unit Aerolev Unit Flight Unit Improved Flight Unit Utility Lightpack 2.0 Device Heat Sink Storage Lightpack 2.0 Processor Advanced Signal Interpreter Hackware Experimental Hacking Suite Protection Centrium Medium Armor Plating Weapon Improved Datajack Energy Gun Warp Gun Energy Cannon Particle Cannon Ballistic Gun Assault Rifle Ballistic Cannon Omega Cannon Special Weapon Plasma Cutter Slashing Weapon Katana Piercing Weapon CR-A16's Pointy Stick Special Melee Weapon Improved Datajack Build | -11 -10 -10 -10 -9 -8 -7 -7 -7 -7 -6 -6 -6 -6 -6 -5 -5 -5 -5 -5 -5 -4 -4 -4 -4 -4 -4 -3 -3 -3 -2 -2 -2 ------- Run | Scr Mat Min Exi Min Mat Fac Low Low Dat Pro Fac Low Low Zio Pro Fac Ext Cet Arc Hub Fac Was Fac Upp Upp Zhi Pro Res Tes Res Qua Sec Slots Evolved 16 | . . . . . 4 2 . . . . 2 . . . . 2 . . . . 2 . . . . . . 2 . 2 . . Power 1 | . . . . . . . . . . . . . . . . . . . . . 1 . . . . . . . . . . . Propulsion 6 | . . . . . 1 1 . . . . 1 . . . . . . . . . 1 . . . . . . . . 2 . . Utility 9 | . . . . . 3 1 . . . . 1 . . . . 2 . . . . . . . . . . . 2 . . . . Weapon . | . . . . . . . . . . . . . . . . . . . . . . . . . . . . . . . . . Parts Attached 184 | 6 7 5 4 2 28 9 . . 1 2 9 3 . 5 1 3 5 2 1 8 5 . 12 1 4 2 . 16 10 14 9 10 Power 23 | 1 1 1 . . 4 . . . . . . . . . . . 2 . . . 1 . 2 . . . . 4 1 . 3 3 Engine 6 | 1 1 1 . . 1 . . . . . . . . . . . 1 . . . . . 1 . . . . . . . . . Core 7 | . . . . . 3 . . . . . . . . . . . 1 . . . . . 1 . . . . 1 . . . 1 Reactor 10 | . . . . . . . . . . . . . . . . . . . . . 1 . . . . . . 3 1 . 3 2 Propulsion 45 | 2 . 1 2 . 14 4 . . . . 1 . . . . . 1 1 . . . . 1 1 . . . 5 1 5 4 2 Treads 13 | 2 . 1 . . 10 . . . . . . . . . . . . . . . . . . . . . . . . . . . Leg . | . . . . . . . . . . . . . . . . . . . . . . . . . . . . . . . . . Wheel 2 | . . . 2 . . . . . . . . . . . . . . . . . . . . . . . . . . . . . Hover 2 | . . . . . 2 . . . . . . . . . . . . . . . . . . . . . . . . . . . Flight 28 | . . . . . 2 4 . . . . 1 . . . . . 1 1 . . . . 1 1 . . . 5 1 5 4 2 Utility 81 | 1 2 1 . . 7 3 . . 1 2 8 3 . 3 1 3 2 1 1 6 4 . 7 . 3 2 . 7 7 4 1 1 Device 44 | . 1 . . . . 1 . . 1 2 4 3 . 2 . 2 2 . 1 3 2 . 5 . 1 1 . 5 4 2 1 1 Storage 9 | 1 1 1 . . 1 2 . . . . . . . . . . . . . . 1 . . . . 1 . . . 1 . . Processor 9 | . . . . . 4 . . . . . 1 . . 1 . 1 . . . . . . 1 . 1 . . . . . . . Hackware 6 | . . . . . . . . . . . 2 . . . . . . . . . . . 1 . . . . 2 1 . . . Protection 13 | . . . . . 2 . . . . . 1 . . . 1 . . 1 . 3 1 . . . 1 . . . 2 1 . . Artifact . | . . . . . . . . . . . . . . . . . . . . . . . . . . . . . . . . . Weapon 35 | 2 4 2 2 2 3 2 . . . . . . . 2 . . . . . 2 . . 2 . 1 . . . 1 5 1 4 Energy Gun 1 | . . . . . . . . . . . . . . . . . . . . . . . . . . . . . 1 . . . Energy Cannon 8 | . 3 2 1 . . . . . . . . . . . . . . . . . . . . . . . . . . . . 2 Ballistic Gun 8 | 2 1 . 1 1 3 . . . . . . . . . . . . . . . . . . . . . . . . . . . Ballistic Cannon 1 | . . . . . . . . . . . . . . . . . . . . . . . . . . . . . . . . 1 Launcher . | . . . . . . . . . . . . . . . . . . . . . . . . . . . . . . . . . Special Weapon 6 | . . . . 1 . . . . . . . . . 1 . . . . . 2 . . 1 . . . . . . 1 . . Impact Weapon . | . . . . . . . . . . . . . . . . . . . . . . . . . . . . . . . . . Slashing Weapon 5 | . . . . . . 1 . . . . . . . . . . . . . . . . . . . . . . . 3 1 . Piercing Weapon 3 | . . . . . . . . . . . . . . 1 . . . . . . . . . . 1 . . . . . . 1 Special Melee Weapon 3 | . . . . . . 1 . . . . . . . . . . . . . . . . 1 . . . . . . 1 . . Unidentified Prototypes 24 | . . . . . 4 . . . . . 1 1 . . . . . 1 . 1 4 . . . . 2 . 1 5 1 . 3 Corrupted Parts 1 | . . . . . . . . . . . . . . . . . . . . . . . 1 . . . . . . . . . System Corruption 5 | . . . . . . . . . . . . . . . . . . . . . . . 5 . . . . . . . . . Parts Lost 54 | . . 2 . . 3 . . . . . . . . . . . 1 1 . 9 1 . 2 . 3 . 1 2 . 13 9 7 Power 11 | . . 1 . . 2 . . . . . . . . . . . 1 . . 1 . . 1 . 1 . . . . 1 2 1 Propulsion 24 | . . 1 . . 1 . . . . . . . . . . . . 1 . 3 . . 1 . . . 1 1 . 6 5 4 Utility 16 | . . . . . . . . . . . . . . . . . . . . 4 1 . . . 2 . . 1 . 5 2 1 Weapon 3 | . . . . . . . . . . . . . . . . . . . . 1 . . . . . . . . . 1 . 1 Highest Loss Streak 18 | . . 2 . . 1 . . . . . . . . . . . 1 1 . 8 1 . 1 . 3 . 1 2 . 13 18 7 To Critical Strikes . | . . . . . . . . . . . . . . . . . . . . . . . . . . . . . . . . . Average Slot Usage (%) 84 | . 93 99 100 100 94 84 84 84 81 84 82 85 81 86 87 88 87 88 88 85 40 40 53 60 59 59 45 70 73 78 43 41 Engine 5 | . 14 13 14 14 3 . . . . . . . . . . . 1 . . . . . . 5 5 5 . . . . . . Core 2 | . . . . . 3 7 7 7 7 7 6 6 6 6 6 5 3 5 5 5 . . . 5 . . . . . . . 1 Reactor 1 | . . . . . . . . . . . . . . . . . . . . . 5 5 2 . . . . 7 9 8 2 3 Treads 10 | . 28 27 21 . 23 . . . . . . . . . . . . . . . . . . . . . . . . . . . Wheel 1 | . . . 6 28 2 . . . . . . . . . . . . . . . . . . . . . . . . . . . Flight 12 | . . . . . . 29 30 30 30 30 28 32 31 31 31 27 27 27 27 26 10 10 11 10 15 15 10 18 20 24 13 10 Device 9 | . 7 14 14 14 3 6 7 7 4 7 5 6 6 6 6 14 11 11 11 10 5 5 17 20 11 7 5 16 14 11 2 1 Storage 8 | . 14 14 14 14 11 7 7 7 7 7 6 6 6 6 6 5 5 5 5 5 5 5 5 5 5 7 5 4 4 4 4 3 Processor 9 | . . . . . 19 15 15 15 15 15 13 12 12 12 12 12 16 16 16 15 5 5 9 10 13 15 15 13 11 8 8 8 Protection 3 | . . . . . 8 . . . . . 6 6 6 6 6 5 5 5 5 4 5 5 . . 3 5 5 3 7 7 . . Energy Cannon 3 | . 6 14 14 14 1 . . . . . . . . . . . . . . . . . . . . . . . . . . . Ballistic Gun 7 | . 21 14 14 13 16 . . . . . . . . . . . . . . . . . . . . . . . . . . . Special Weapon 1 | . . . . . . . . . . . . . . 5 6 5 5 5 5 3 . . . . . . . . . 2 . . Slashing Weapon 1 | . . . . . . 6 7 7 7 7 6 6 6 . . . . . . . . . . . . . . . . 3 3 3 Piercing Weapon 2 | . . . . . . . . . . . . . . 5 6 5 5 5 5 5 5 5 5 5 5 5 5 4 4 4 4 3 Special Melee Weapon 1 | . . . . . . 6 7 7 7 7 6 6 6 6 6 5 5 5 5 4 . . 1 . . . . . . . . . Naked Turns . | . . . . . . . . . . . . . . . . . . . . . . . . . . . . . . . . . Heaviest Build 100 | 10 52 92 92 92 100 14 14 14 14 16 17 17 17 19 23 26 30 27 27 31 27 27 29 20 19 16 16 32 58 55 46 57 Greatest Support 77 | 40 40 40 40 32 60 20 20 20 20 20 26 26 26 26 26 26 27 27 27 27 27 27 34 32 28 16 16 61 61 77 62 48 Greatest Overweight (x) 6 | . 1 2 2 2 6 . . . . . . . . . . . 1 . . 1 . . 1 . . . 3 . 1 . 1 1 Average Overweight (x) . | . . 1 2 2 1 . . . . . . . . . . . . . . . . . . . . . . . . . . . Largest Inventory Capacity 40 | 8 20 25 25 25 25 40 40 40 40 40 40 40 40 40 40 40 40 40 40 40 40 40 40 40 40 40 40 40 40 40 15 15 Average Capacity 30 | 6 18 21 25 25 25 39 40 40 40 40 40 40 40 40 40 40 40 40 40 40 40 40 40 40 40 40 40 40 40 38 15 14 Most Carried 25 | 6 20 25 25 25 25 25 13 13 13 15 16 15 14 15 14 13 14 16 16 17 16 14 18 16 16 17 18 18 19 19 13 15 Average Carried 17 | 3 15 21 24 25 24 11 12 13 12 12 14 14 14 13 14 12 13 13 16 16 13 14 15 16 15 16 17 14 16 17 11 13 Final Capacity 40 | 8 20 25 25 25 25 40 40 40 40 40 40 40 40 40 40 40 40 40 40 40 40 40 40 40 40 40 40 40 40 15 15 5 Final Carried 25 | 6 20 25 25 25 25 12 13 13 12 13 15 14 14 14 14 13 14 16 16 17 14 14 16 16 16 17 18 15 18 8 12 5 Class Distribution -------------------- 37% | Mutant 23% | Hauler-Scout 12% | Hauler-Sprinter 10% | Hauler-Mutant 8% | Scavenger-Skirmisher 3% | Hauler-Ninja Dominant Class ---------------- Mutant | -10/Materials Mutant | -10/Mines Mutant | -10/Exiles Mutant | -9/Mines Scavenger-Skirmisher | -8/Materials Hauler-Scout | -7/Factory Hauler-Scout | -7/Lower Caves Hauler-Scout | -7/Lower Caves Hauler-Scout | -7/Data Miner Hauler-Scout | -6/Proximity Caves Hauler-Scout | -6/Factory Hauler-Scout | -6/Lower Caves Hauler-Scout | -6/Lower Caves Hauler-Sprinter | -6/Zion Hauler-Sprinter | -5/Proximity Caves Hauler-Scout | -5/Factory Hauler-Scout | -5/Extension Hauler-Scout | -5/Cetus Hauler-Scout | -5/Archives Hauler-Scout | -5/Hub_04(d) Hauler-Mutant | -4/Factory Hauler-Mutant | -4/Waste Hauler-Ninja | -4/Factory Hauler-Ninja | -4/Upper Caves Hauler-Sprinter | -4/Upper Caves Hauler-Sprinter | -4/Zhirov Hauler-Mutant | -3/Proximity Caves Hauler-Mutant | -3/Research Hauler-Sprinter | -3/Testing Hauler-Sprinter | -2/Research Sprinter | -2/Quarantine Mutant | -2/Section 7 Resources | -11 -10 -10 -10 -9 -8 -7 -7 -7 -7 -6 -6 -6 -6 -6 -5 -5 -5 -5 -5 -5 -4 -4 -4 -4 -4 -4 -3 -3 -3 -2 -2 -2 ----------- Run | Scr Mat Min Exi Min Mat Fac Low Low Dat Pro Fac Low Low Zio Pro Fac Ext Cet Arc Hub Fac Was Fac Upp Upp Zhi Pro Res Tes Res Qua Sec Matter Collected 2525 | 203 203 103 . 76 652 170 . . . 40 50 66 14 50 10 . 50 50 . 80 . . 195 30 38 . 14 206 . 193 . 32 Remotely . | . . . . . . . . . . . . . . . . . . . . . . . . . . . . . . . . . Salvage Created 3594 | . 452 328 . 29 1004 134 . . . 35 207 . . . . . 243 160 . 122 . . 94 90 113 . . 358 . 193 . 32 Parts 241 | . 32 20 . 2 63 12 . . . 3 7 . . . . . 18 18 . 16 . . 10 6 6 . . 14 . 11 . 3 Haulers Intercepted 7 | . 1 . . . 1 2 . . . . 2 . . . . . . . . . . . . . . . . . . 1 . . Recyclers Shooed 6 | . . . . . 5 . . . . . . . . . . . 1 . . . . . . . . . . . . . . . Parts Field Recycled . | . . . . . . . . . . . . . . . . . . . . . . . . . . . . . . . . . Retrieved Matter . | . . . . . . . . . . . . . . . . . . . . . . . . . . . . . . . . . Parts Self-Destructed 22 | . . . . . . . . . . 2 . 2 . . . . . . . . . . . 12 6 . . . . . . . Prevented . | . . . . . . . . . . . . . . . . . . . . . . . . . . . . . . . . . Kills | -11 -10 -10 -10 -9 -8 -7 -7 -7 -7 -6 -6 -6 -6 -6 -5 -5 -5 -5 -5 -5 -4 -4 -4 -4 -4 -4 -3 -3 -3 -2 -2 -2 ------- Run | Scr Mat Min Exi Min Mat Fac Low Low Dat Pro Fac Low Low Zio Pro Fac Ext Cet Arc Hub Fac Was Fac Upp Upp Zhi Pro Res Tes Res Qua Sec Combat Hostiles Destroyed 57 | . 13 9 . 2 16 . . . . . . . . . . . 2 . . 5 . . 6 1 1 . . 2 . . . . Melee 2 | . . . . . . . . . . . . . . . . . 2 . . . . . . . . . . . . . . . Guns 21 | . 8 1 . . 12 . . . . . . . . . . . . . . . . . . . . . . . . . . . Cannons 19 | . 5 6 . 2 4 . . . . . . . . . . . . . . 1 . . 1 . . . . . . . . . AOE 11 | . . 2 . . . . . . . . . . . . . . . . . 4 . . 5 . . . . . . . . . Classes Destroyed 13 | . 5 1 . . 5 . . . . 1 . . . . . . 1 . . . . . . . . . . . . . . . Worker 4 | . 1 . . . 2 . . . . . . . . . . . . . . . . . . . . . . . . 1 . . Builder 3 | . . . . . 1 . . . . . . . . . . . . . . . . . 2 . . . . . . . . . Tunneler 2 | . . . . . 2 . . . . . . . . . . . . . . . . . . . . . . . . . . . Hauler 7 | . 1 . . . 1 2 . . . . 2 . . . . . . . . . . . . . . . . . . 1 . . Recycler 4 | . . 1 . . 2 . . . . . . . . . . . . . . . . . . . . . . 1 . . . . Minesweeper 1 | . . . . . . . . . . 1 . . . . . . . . . . . . . . . . . . . . . . Operator 2 | . 1 . . . . . . . . . . . . . . . 1 . . . . . . . . . . . . . . . Watcher 10 | . . . . . 1 1 . . . . . . . . . . 2 . . 3 . . . . . . . . . 2 . 1 Swarmer 28 | . 7 4 . 2 4 . . . . . . . . . . . . . . 5 . . 6 . . . . . . . . . Grunt 19 | . 6 5 . . 8 . . . . . . . . . . . . . . . . . . . . . . . . . . . Sentry 3 | . . . . . 3 . . . . . . . . . . . . . . . . . . . . . . . . . . . Hunter 1 | . . . . . 1 . . . . . . . . . . . . . . . . . . . . . . . . . . . Behemoth 6 | . . . . . . . . . . . . . . . . . 2 . . . . . . 1 1 . . 2 . . . . Thug 1 | . . . . . . . . . . . . . . . . . . 1 . . . . . . . . . . . . . . Best Kill Streak 6 | . 4 4 . 2 4 1 . . . 1 1 . . . . . 2 . . 5 . . 6 1 1 . . 1 . 2 . 1 Combat Bots Only 6 | . 3 3 . 2 4 . . . . . . . . . . . 2 . . 5 . . 6 1 1 . . 1 . . . . Max Kills in Single Turn 5 | . 1 2 . 1 2 1 . . . 1 1 . . . . . 1 1 . 5 . . 4 1 1 . . 1 . 1 . 1 Gunslinging 1 | . . . . . 1 . . . . . . . . . . . . . . . . . . . . . . . . . . . Exploded 4 | . . 2 . . . . . . . . . . . . . . . . . 4 . . 3 . . . . . . . . . Melee 1 | . . . . . . . . . . . . . . . . . 1 . . . . . . . . . . . . . . . Uniques/NPCs Destroyed 1 | . . . . . . . . . . . . . . . . . . 1 . . . . . . . . . . . . . . A7 (-5/Cetus) Combat | -11 -10 -10 -10 -9 -8 -7 -7 -7 -7 -6 -6 -6 -6 -6 -5 -5 -5 -5 -5 -5 -4 -4 -4 -4 -4 -4 -3 -3 -3 -2 -2 -2 -------- Run | Scr Mat Min Exi Min Mat Fac Low Low Dat Pro Fac Low Low Zio Pro Fac Ext Cet Arc Hub Fac Was Fac Upp Upp Zhi Pro Res Tes Res Qua Sec Damage Taken 8803 | . 406 274 . 17 1178 17 18 31 . . 77 23 . . . . 336 82 . 913 68 . 337 174 153 . 119 303 204 1649 1018 1406 Core 2753 | . 108 6 . 17 214 17 18 . . . 31 . . . . . 55 37 . 307 . . 91 116 56 . 37 93 30 478 331 711 Absorbed by Shields 75 | . . . . . . . . . . . . . . . . . . 28 . . . . . . . . . . . . 47 . Redirected to Shielding 58 | . . . . . . . . . . . . . . . . . . . . . . . . . . . 13 45 . . . . Regen/Repaired (Parts) 280 | . . . . . 271 . . . . . . . . 9 . . . . . . . . . . . . . . . . . . Core Remaining (%) 77 | 100 . . . 47 61 . . . . 95 . . . . 96 . . . . 60 . . . . . . 73 . 90 . . . Volleys Fired 185 | . 54 23 . 4 70 . . . . . . . . . . . . 26 . 1 . . 2 . . . . . . . . 5 Largest 2 | . 2 2 . 2 2 . . . . . . . . . . . . 1 . 1 . . 1 . . . . . . . . 1 Hottest 120 | . 80 88 . 100 88 . . . . . . . . . . . . 20 . . . . . . . . . . . . . 120 Shots Fired 310 | . 94 44 . 7 131 . . . . . . . . . . . . 26 . 1 . . 2 . . . . . . . . 5 Gun 221 | . 80 21 . 3 117 . . . . . . . . . . . . . . . . . . . . . . . . . . . Cannon 59 | . 14 23 . 3 14 . . . . . . . . . . . . . . . . . . . . . . . . . . 5 Launcher . | . . . . . . . . . . . . . . . . . . . . . . . . . . . . . . . . . Special 30 | . . . . 1 . . . . . . . . . . . . . 26 . 1 . . 2 . . . . . . . . . Kinetic 221 | . 80 21 . 3 117 . . . . . . . . . . . . . . . . . . . . . . . . . . . Thermal 86 | . 14 23 . 4 14 . . . . . . . . . . . . 26 . . . . . . . . . . . . . 5 Explosive 3 | . . . . . . . . . . . . . . . . . . . . 1 . . 2 . . . . . . . . . Electromagnetic . | . . . . . . . . . . . . . . . . . . . . . . . . . . . . . . . . . Robot Hit Streak 13 | . 4 5 . 1 13 . . . . . . . . . . . . 6 . 1 . . 3 . . . . . . . . . Robot Miss Streak 4 | . 4 2 . 4 3 . . . . . . . . . . . . 2 . . . . . . . . . . . . . . Penetration Max 1 | . . . . . 1 . . . . . . . . . . . . . . . . . . . . . . . . . . . Secondary Targets 1 | . . . . . 1 . . . . . . . . . . . . . . . . . . . . . . . . . . . Max Gunslinging Chain 1 | . . . . . 1 . . . . . . . . . . . . . . . . . . . . . . . . . . . Shots Hit Robots 263 | . 52 23 . 1 86 8 . . . 2 15 . . . . . 33 21 . 5 . . 5 2 1 . . 3 . 5 . 1 Core Hits 123 | . 25 12 . 2 41 3 . . . 1 3 . . . . . 6 11 . 5 . . 8 . . . . 1 . 4 . 1 Critical Kills . | . . . . . . . . . . . . . . . . . . . . . . . . . . . . . . . . . Critical Parts Destroyed . | . . . . . . . . . . . . . . . . . . . . . . . . . . . . . . . . . Critical Strikes 7 | . . . . . . . . . . . . . . . . . 3 1 . 1 . . 1 . . . . . . 1 . . Sever 3 | . . . . . . . . . . . . . . . . . . 1 . . . . 1 . . . . . . 1 . . Impale 4 | . . . . . . . . . . . . . . . . . 3 . . 1 . . . . . . . . . . . . Melee Attacks 275 | . . . . . . 23 14 . . 8 26 4 . . 5 6 38 2 . 13 12 . 25 4 8 . 3 14 14 44 3 9 Impact . | . . . . . . . . . . . . . . . . . . . . . . . . . . . . . . . . . Slashing 116 | . . . . . . 23 14 . . 8 24 4 . . . . . . . . . . . . . . . . . 32 3 8 Piercing 135 | . . . . . . . . . . . . . . . 5 6 16 2 . 13 12 . 25 4 8 . 3 14 14 12 . 1 Sneak Attacks 43 | . . . . . . 3 . . . 1 4 . . . . . 25 2 . 1 . . 2 . . . . 2 . 3 . . Combat Hostiles 1 | . . . . . . . . . . . . . . . . . . . . . . . . . . . . 1 . . . . Follow-up Attacks 1 | . . . . . . . . . . . . . . . . . . . . . . . . . . . . . . 1 . . Damage Inflicted 7341 | 1 554 590 . 134 1528 389 . . . 109 517 . . . . . 632 324 . 879 . . 1020 34 . . . 90 . 480 . 60 Guns 1736 | . 367 138 . . 1231 . . . . . . . . . . . . . . . . . . . . . . . . . . . Cannons 743 | . 162 290 . 46 245 . . . . . . . . . . . . . . . . . . . . . . . . . . . Explosions 1594 | . . 153 . 88 . . . . . . . . . . . . . . . 597 . . 756 . . . . . . . . . Melee 2849 | . . . . . . 389 . . . 109 517 . . . . . 632 99 . 245 . . 194 34 . . . 90 . 480 . 60 Ramming 87 | 1 25 9 . . 52 . . . . . . . . . . . . . . . . . . . . . . . . . . . Kinetic 1736 | . 367 138 . . 1231 . . . . . . . . . . . . . . . . . . . . . . . . . . . Thermal 1209 | . 162 443 . 134 245 . . . . . . . . . . . . 225 . . . . . . . . . . . . . . Explosive 1248 | . . . . . . . . . . . . . . . . . . . . 492 . . 756 . . . . . . . . . Electromagnetic 105 | . . . . . . . . . . . . . . . . . . . . 105 . . . . . . . . . . . . Impact . | . . . . . . . . . . . . . . . . . . . . . . . . . . . . . . . . . Slashing 1580 | . . . . . . 389 . . . 109 517 . . . . . . . . 37 . . 70 . . . . . . 398 . 60 Piercing 1376 | . . . . . . . . . . . . . . . . . 632 99 . 245 . . 194 34 . . . 90 . 82 . . Highest Corruption 12 | . . . . . . . . . . . . . . . . . . . . 12 . 5 10 10 10 10 10 2 3 6 8 9 Average Corruption 7 | . . . . . . . . . . . . . . . . . . . . 6 . 5 9 10 10 10 10 1 2 4 6 8 Corruption Purged . | . . . . . . . . . . . . . . . . . . . . . . . . . . . . . . . . . Corruption Blocked 17 | . . . . . . . . . . . . . . . . . . . . . . . . . . . . . . 17 . . Effects 66 | . . . . . . . . . . . . . . . . . . . . 1 . . 22 4 12 1 10 . 3 1 4 8 Message Errors 18 | . . . . . . . . . . . . . . . . . . . . . . . 7 1 6 . 1 . 1 . 1 1 Matter Fused 13 | . . . . . . . . . . . . . . . . . . . . . . . 4 1 2 . 3 . 1 . 1 1 Heat Flow Errors 9 | . . . . . . . . . . . . . . . . . . . . . . . 4 . . . 1 . 1 . . 3 Energy Discharges 9 | . . . . . . . . . . . . . . . . . . . . . . . 4 . 1 1 . . . . 1 2 Parts Rejected 1 | . . . . . . . . . . . . . . . . . . . . . . . . . 1 . . . . . . . Data Loss (minor) 10 | . . . . . . . . . . . . . . . . . . . . . . . 2 1 . . 4 . . 1 1 1 Data Loss (major) 2 | . . . . . . . . . . . . . . . . . . . . . . . . . 2 . . . . . . . Alerts 1 | . . . . . . . . . . . . . . . . . . . . . . . . . . . 1 . . . . . Misdirections 3 | . . . . . . . . . . . . . . . . . . . . 1 . . 1 1 . . . . . . . . Overload Shots . | . . . . . . . . . . . . . . . . . . . . . . . . . . . . . . . . . Overflow Damage 488 | . . 18 . . . 34 . . . 23 61 . . . . . 25 8 . 217 . . 102 . . . . . . . . . Projectiles 8 | . . . . . . . . . . . . . . . . . . 8 . . . . . . . . . . . . . . Explosions 114 | . . 18 . . . . . . . . . . . . . . . . . 81 . . 15 . . . . . . . . . Melee 366 | . . . . . . 34 . . . 23 61 . . . . . 25 . . 136 . . 87 . . . . . . . . . Knockbacks 2 | . 1 . . . 1 . . . . . . . . . . . . . . . . . . . . . . . . . . . Impact 2 | . 1 . . . 1 . . . . . . . . . . . . . . . . . . . . . . . . . . . Kinetic . | . . . . . . . . . . . . . . . . . . . . . . . . . . . . . . . . . Secondary . | . . . . . . . . . . . . . . . . . . . . . . . . . . . . . . . . . Self-Inflicted Damage 69 | . . 7 . 17 . . . . . . . . . . . . . . . 45 . . . . . . . . . . . . Shots 3 | . . 1 . 1 . . . . . . . . . . . . . . . 1 . . . . . . . . . . . . Rammed 13 | 1 5 1 . . 6 . . . . . . . . . . . . . . . . . . . . . . . . . . . Targets Rammed 16 | 1 5 1 . . 9 . . . . . . . . . . . . . . . . . . . . . . . . . . . Kicked . | . . . . . . . . . . . . . . . . . . . . . . . . . . . . . . . . . Crushed 3 | . . . . . 3 . . . . . . . . . . . . . . . . . . . . . . . . . . . Highest Temperature 224 | . 40 51 . 11 44 . . . . . 4 . . . . . 7 . . 8 . . 224 . . . 212 . 213 4 . 181 Average Temperature 32 | . 12 25 . 7 17 . . . . . 2 . . . . . 7 . . 4 . . 90 . . . 124 . 92 2 . 60 Received Heat Transfer 1533 | . 120 117 . . 558 . 9 . . . 30 . . . . . 81 12 . 36 9 . 39 30 18 . 9 9 51 135 99 171 Siege Activations . | . . . . . . . . . . . . . . . . . . . . . . . . . . . . . . . . . Robots Corrupted . | . . . . . . . . . . . . . . . . . . . . . . . . . . . . . . . . . Combat Hostiles . | . . . . . . . . . . . . . . . . . . . . . . . . . . . . . . . . . Parts Fried . | . . . . . . . . . . . . . . . . . . . . . . . . . . . . . . . . . Impact Corruptions . | . . . . . . . . . . . . . . . . . . . . . . . . . . . . . . . . . Robots Melted . | . . . . . . . . . . . . . . . . . . . . . . . . . . . . . . . . . Combat Hostiles . | . . . . . . . . . . . . . . . . . . . . . . . . . . . . . . . . . Parts Melted 6 | . . 3 . 2 . . . . . . . . . . . . . . . . . . . 1 . . . . . . . . Heat Transferred 2459 | . 333 718 . 224 444 . . . . . . . . . . . . 740 . . . . . . . . . . . . . . Parts Sabotaged . | . . . . . . . . . . . . . . . . . . . . . . . . . . . . . . . . . Parts Stolen . | . . . . . . . . . . . . . . . . . . . . . . . . . . . . . . . . . Parts Stripped . | . . . . . . . . . . . . . . . . . . . . . . . . . . . . . . . . . Power Chain Reactions . | . . . . . . . . . . . . . . . . . . . . . . . . . . . . . . . . . Missiles Intercepted . | . . . . . . . . . . . . . . . . . . . . . . . . . . . . . . . . . Alert | -11 -10 -10 -10 -9 -8 -7 -7 -7 -7 -6 -6 -6 -6 -6 -5 -5 -5 -5 -5 -5 -4 -4 -4 -4 -4 -4 -3 -3 -3 -2 -2 -2 ------- Run | Scr Mat Min Exi Min Mat Fac Low Low Dat Pro Fac Low Low Zio Pro Fac Ext Cet Arc Hub Fac Was Fac Upp Upp Zhi Pro Res Tes Res Qua Sec Peak Influence 1096 | . 193 267 . 130 363 186 . . . . 92 . . . . 118 685 768 484 1096 589 221 605 . . . . 438 541 700 710 552 Initial 515 | . . 32 . . . 38 . . . . 2 . . . . 46 57 383 307 169 515 206 154 . . . . 151 246 312 390 396 Average 213 | . 68 75 . 72 115 86 . . . . 52 . . . . 63 397 466 421 615 564 213 328 . . . . 197 319 462 505 468 Maximum Alert Level 4 | . . 1 . . 1 . . . . . . . . . . . 2 3 2 4 2 1 2 . . . . 2 2 3 3 2 Low Security (%) 62 | 100 100 89 . 100 89 100 . . . . 100 . . . . 100 19 . . 5 . . 27 . . . . 71 . . . . Level 1 17 | . . 10 . . 10 . . . . . . . . . . . 38 20 50 36 . 100 39 . . . . 26 87 32 7 8 Level 2 18 | . . . . . . . . . . . . . . . . . 42 70 49 26 100 . 33 . . . . 2 12 66 78 91 Level 3 1 | . . . . . . . . . . . . . . . . . . 9 . 32 . . . . . . . . . . 14 . Level 4 . | . . . . . . . . . . . . . . . . . . . . . . . . . . . . . . . . . Level 5 . | . . . . . . . . . . . . . . . . . . . . . . . . . . . . . . . . . High Security . | . . . . . . . . . . . . . . . . . . . . . . . . . . . . . . . . . Max Security . | . . . . . . . . . . . . . . . . . . . . . . . . . . . . . . . . . Squads Dispatched 47 | . 3 1 . . 3 2 . . . . 10 . . . . . 2 . . 7 . . 4 . . . . 1 3 6 2 3 Investigation 17 | . 1 1 . . 2 1 . . . . 3 . . . . . 1 . . 1 . . 3 . . . . . 1 1 1 1 Extermination 6 | . . . . . . . . . . . 1 . . . . . . . . 1 . . . . . . . 1 1 1 . 1 Reinforcement 17 | . 2 . . . 1 1 . . . . 2 . . . . . 1 . . 4 . . . . . . . . 1 3 1 1 Assault 3 | . . . . . . . . . . . . . . . . . . . . 1 . . 1 . . . . . . 1 . . Garrison 4 | . . . . . . . . . . . 4 . . . . . . . . . . . . . . . . . . . . . Intercept . | . . . . . . . . . . . . . . . . . . . . . . . . . . . . . . . . . Searches Triggered 1 | . . . . . . . . . . . . . . . . . . . . . . . . . . . . . . 1 . . Data Miner Redirects 11 | . . . . . . . . . . . 3 . . . . . 1 . . . . . 4 . . . . . 1 2 . . Construction Impeded 2 | . . . . . . . . . . . . . . . . . 1 . . 1 . . . . . . . . . . . . Haulers Reinforced 2 | . . . . . . . . . . . 2 . . . . . . . . . . . . . . . . . . . . . Active Scanning Responses . | . . . . . . . . . . . . . . . . . . . . . . . . . . . . . . . . . Cargo Convoy Interrupts . | . . . . . . . . . . . . . . . . . . . . . . . . . . . . . . . . . Stealth | -11 -10 -10 -10 -9 -8 -7 -7 -7 -7 -6 -6 -6 -6 -6 -5 -5 -5 -5 -5 -5 -4 -4 -4 -4 -4 -4 -3 -3 -3 -2 -2 -2 --------- Run | Scr Mat Min Exi Min Mat Fac Low Low Dat Pro Fac Low Low Zio Pro Fac Ext Cet Arc Hub Fac Was Fac Upp Upp Zhi Pro Res Tes Res Qua Sec Distress Signals 20 | . 2 . . 1 6 1 . . . . . . . . . 1 . 1 . 2 . . 2 . . . . 1 1 . . 2 Communications Jammed . | . . . . . . . . . . . . . . . . . . . . . . . . . . . . . . . . . Distress Signals . | . . . . . . . . . . . . . . . . . . . . . . . . . . . . . . . . . Times Spotted 370 | . 21 12 . 3 30 5 3 6 . . 5 4 3 . 3 4 20 9 2 41 5 5 23 5 1 . 9 13 24 65 24 25 Peak Tracking Total 24 | . 3 3 . 3 5 2 3 8 . . 2 4 3 . 5 5 8 5 1 15 5 5 7 4 1 . 9 8 15 24 16 24 Tactical Retreats 53 | . . 2 . . 1 3 1 1 . . 1 2 . . 1 1 1 . . 3 1 . 6 . . . 5 . 5 12 5 2 Traps | -11 -10 -10 -10 -9 -8 -7 -7 -7 -7 -6 -6 -6 -6 -6 -5 -5 -5 -5 -5 -5 -4 -4 -4 -4 -4 -4 -3 -3 -3 -2 -2 -2 ------- Run | Scr Mat Min Exi Min Mat Fac Low Low Dat Pro Fac Low Low Zio Pro Fac Ext Cet Arc Hub Fac Was Fac Upp Upp Zhi Pro Res Tes Res Qua Sec Traps Triggered 13 | . . . . . . 1 . . . . . . . . . . 1 . . 2 1 . 1 . . . . 1 3 1 1 1 Indirectly . | . . . . . . . . . . . . . . . . . . . . . . . . . . . . . . . . . Trap Hack Attempts 9 | . . . . . . . . . . . . . . . . . . . . . . . . . . . . . . 9 . . Triggered . | . . . . . . . . . . . . . . . . . . . . . . . . . . . . . . . . . Disarmed . | . . . . . . . . . . . . . . . . . . . . . . . . . . . . . . . . . Reprogrammed . | . . . . . . . . . . . . . . . . . . . . . . . . . . . . . . . . . Reused . | . . . . . . . . . . . . . . . . . . . . . . . . . . . . . . . . . Traps Extracted . | . . . . . . . . . . . . . . . . . . . . . . . . . . . . . . . . . Installed 3 | . . . . . . . . . . . . . . . . . . . . 3 . . . . . . . . . . . . Triggered . | . . . . . . . . . . . . . . . . . . . . . . . . . . . . . . . . . Most Traps Carried 10 | . . 5 5 5 5 5 2 2 2 9 9 10 10 10 10 10 10 10 10 10 5 5 5 1 1 1 1 1 . . . . Machines | -11 -10 -10 -10 -9 -8 -7 -7 -7 -7 -6 -6 -6 -6 -6 -5 -5 -5 -5 -5 -5 -4 -4 -4 -4 -4 -4 -3 -3 -3 -2 -2 -2 ---------- Run | Scr Mat Min Exi Min Mat Fac Low Low Dat Pro Fac Low Low Zio Pro Fac Ext Cet Arc Hub Fac Was Fac Upp Upp Zhi Pro Res Tes Res Qua Sec Machines Disabled 30 | . . 6 . 1 2 . . . . . . . . . . . 1 2 1 5 . . 1 . . . . . 5 . 3 3 Max in Single Turn 5 | . . 5 . 1 1 . . . . . . . . . . . . . . 5 . . . . . . . . 1 . 1 1 Garrison Access 2 | . . . . . 1 . . . . . . . . . . . . . . . . . . . . . . 1 . . . . Network Hub 1 | . . . . . . . . . . . . . . . . . . . . 1 . . . . . . . . . . . . Machines Sabotaged . | . . . . . . . . . . . . . . . . . . . . . . . . . . . . . . . . . Garrisons Compromised . | . . . . . . . . . . . . . . . . . . . . . . . . . . . . . . . . . Overloaded Fab Kills . | . . . . . . . . . . . . . . . . . . . . . . . . . . . . . . . . . Hacking | -11 -10 -10 -10 -9 -8 -7 -7 -7 -7 -6 -6 -6 -6 -6 -5 -5 -5 -5 -5 -5 -4 -4 -4 -4 -4 -4 -3 -3 -3 -2 -2 -2 --------- Run | Scr Mat Min Exi Min Mat Fac Low Low Dat Pro Fac Low Low Zio Pro Fac Ext Cet Arc Hub Fac Was Fac Upp Upp Zhi Pro Res Tes Res Qua Sec Machines Accessed 45 | . 5 1 2 . 6 3 . . 4 . 9 . . 1 . 1 1 1 . . . . 2 . 1 4 . 2 2 . . . Terminals 16 | . 4 . . . 2 2 . . . . 6 . . . . 1 . 1 . . . . . . . . . . . . . . Fabricators 6 | . . . . . . 1 . . . . 2 . . . . . . . . . . . 2 . . . . 1 . . . . Repair Stations 2 | . . . . . 2 . . . . . . . . . . . . . . . . . . . . . . . . . . . Recycling Units 3 | . 1 . . . 1 . . . . . . . . . . . 1 . . . . . . . . . . . . . . . Scanalyzers 2 | . . . . . . . . . . . . . . . . . . . . . . . . . . . . . 2 . . . Garrison Access 3 | . . . . . 1 . . . . . 1 . . . . . . . . . . . . . . . . 1 . . . . Total Hacks 135 | . 14 1 2 . 17 7 . . 29 . 22 . . 4 . 1 3 1 . . . . 7 . 1 16 . 6 4 . . . Successful 95 | . 6 1 2 . 8 2 . . 29 . 11 . . 4 . 1 1 1 . . . . 6 . 1 16 . 5 1 . . . Failed 40 | . 8 . . . 9 5 . . . . 11 . . . . . 2 . . . . . 1 . . . . 1 3 . . . Catastrophic 6 | . 2 . . . 1 . . . . . 2 . . . . . . . . . . . . . . . . 1 . . . . Database Lockouts . | . . . . . . . . . . . . . . . . . . . . . . . . . . . . . . . . . Manual 159 | . 10 . 1 . 7 3 . . . . 10 . . . . 3 9 1 . 16 16 . 12 . . . . 23 11 23 3 11 Terminals 41 | . 13 . . . 9 4 . . . . 13 . . . . 1 . 1 . . . . . . . . . . . . . . Fabricators 23 | . . . . . . 3 . . . . 8 . . . . . . . . . . . 7 . . . . 5 . . . . Repair Stations 4 | . . . . . 4 . . . . . . . . . . . . . . . . . . . . . . . . . . . Recycling Units 5 | . 1 . . . 1 . . . . . . . . . . . 3 . . . . . . . . . . . . . . . Scanalyzers 4 | . . . . . . . . . . . . . . . . . . . . . . . . . . . . . 4 . . . Garrison Access 5 | . . . . . 3 . . . . . 1 . . . . . . . . . . . . . . . . 1 . . . . Terminal Hacks 65 | . 5 1 2 . 2 1 . . 29 . 2 . . 4 . 1 . 1 . . . . . . 1 16 . . . . . . Record 17 | . . . 1 . . . . . 11 . . . . . . . . . . . . . . . . 5 . . . . . . Part Schematic 20 | . 2 . . . . 1 . . 10 . . . . 4 . . . . . . . . . . . 3 . . . . . . Robot Schematic 5 | . . . . . . . . . 5 . . . . . . . . . . . . . . . . . . . . . . . Robot Analysis 5 | . 1 . . . . . . . . . . . . . . . . . . . . . . . . 4 . . . . . . Prototype ID Bank 10 | . 1 . . . 1 . . . 3 . 1 . . . . . . . . . . . . . . 4 . . . . . . Open Door 4 | . . 1 . . . . . . . . . . . . . 1 . 1 . . . . . . 1 . . . . . . . Machine Index 1 | . . . . . . . . . . . 1 . . . . . . . . . . . . . . . . . . . . . Locate Traps 2 | . 1 . . . 1 . . . . . . . . . . . . . . . . . . . . . . . . . . . EX-Prototype ID Bank 1 | . . . 1 . . . . . . . . . . . . . . . . . . . . . . . . . . . . . Fabricator Hacks 13 | . . . . . . 1 . . . . 4 . . . . . . . . . . . 4 . . . . 4 . . . . Load Schematic 9 | . . . . . . 1 . . . . 3 . . . . . . . . . . . 3 . . . . 2 . . . . Build 4 | . . . . . . . . . . . 1 . . . . . . . . . . . 1 . . . . 2 . . . . Repair Station Hacks 4 | . . . . . 4 . . . . . . . . . . . . . . . . . . . . . . . . . . . Scan Component 2 | . . . . . 2 . . . . . . . . . . . . . . . . . . . . . . . . . . . Repair 2 | . . . . . 2 . . . . . . . . . . . . . . . . . . . . . . . . . . . Recycling Unit Hacks 1 | . . . . . . . . . . . . . . . . . 1 . . . . . . . . . . . . . . . Retrieve Components 1 | . . . . . . . . . . . . . . . . . 1 . . . . . . . . . . . . . . . Scanalyzer 1 | . . . . . . . . . . . . . . . . . . . . . . . . . . . . . 1 . . . Insert Component 1 | . . . . . . . . . . . . . . . . . . . . . . . . . . . . . 1 . . . Garrison Access Hacks 2 | . . . . . 1 . . . . . . . . . . . . . . . . . . . . . . 1 . . . . Seal Access 2 | . . . . . 1 . . . . . . . . . . . . . . . . . . . . . . 1 . . . . Unauthorized Hacks 9 | . 1 . . . 1 . . . . . 5 . . . . . . . . . . . 2 . . . . . . . . . Terminals 3 | . . . . . . . . . . . 3 . . . . . . . . . . . . . . . . . . . . . Assimilate 2 | . . . . . . . . . . . 2 . . . . . . . . . . . . . . . . . . . . . Botnet 1 | . . . . . . . . . . . 1 . . . . . . . . . . . . . . . . . . . . . Fabricators 4 | . . . . . . . . . . . 2 . . . . . . . . . . . 2 . . . . . . . . . Recompile 4 | . . . . . . . . . . . 2 . . . . . . . . . . . 2 . . . . . . . . . Repair Stations . | . . . . . . . . . . . . . . . . . . . . . . . . . . . . . . . . . Recycling Units 2 | . 1 . . . 1 . . . . . . . . . . . . . . . . . . . . . . . . . . . Tunnel 2 | . 1 . . . 1 . . . . . . . . . . . . . . . . . . . . . . . . . . . Scanalyzers . | . . . . . . . . . . . . . . . . . . . . . . . . . . . . . . . . . Garrison Access . | . . . . . . . . . . . . . . . . . . . . . . . . . . . . . . . . . Data Cores Recovered . | . . . . . . . . . . . . . . . . . . . . . . . . . . . . . . . . . Used . | . . . . . . . . . . . . . . . . . . . . . . . . . . . . . . . . . Hacking Detections 23 | . 4 . . . 3 3 . . . . 8 . . . . . 1 1 . . . . 1 . . . . 1 1 . . . Full Trace Events 3 | . . . . . 1 1 . . . . 1 . . . . . . . . . . . . . . . . . . . . . Feedback Events . | . . . . . . . . . . . . . . . . . . . . . . . . . . . . . . . . . Feedback Blocked . | . . . . . . . . . . . . . . . . . . . . . . . . . . . . . . . . . Robot Schematics Acquired 5 | . . . . . . . . . 5 . . . . . . . . . . . . . . . . . . . . . . . Robots Built . | . . . . . . . . . . . . . . . . . . . . . . . . . . . . . . . . . Authchips . | . . . . . . . . . . . . . . . . . . . . . . . . . . . . . . . . . Time . | . . . . . . . . . . . . . . . . . . . . . . . . . . . . . . . . . Total Robot Build Rating . | . . . . . . . . . . . . . . . . . . . . . . . . . . . . . . . . . Part Schematics Acquired 103 | . 2 . . . . 1 . . 10 . . . . 4 . . 12 . . 27 12 . . . . 3 . 8 12 12 . . Parts Built 5 | . . . . . . . . . . . 2 . . . . . . . . . . . 1 . . . . 2 . . . . Authchips 4 | . . . . . . . . . . . 1 . . . . . . . . . . . 1 . . . . 2 . . . . Time 259 | . . . . . . . . . . . 42 . . . . . . . . . . . 93 . . . . 124 . . . . Total Part Build Rating 29 | . . . . . . . . . . . 8 . . . . . . . . . . . 7 . . . . 14 . . . . Parts Repaired 2 | . . . . . 2 . . . . . . . . . . . . . . . . . . . . . . . . . . . Time 64 | . . . . . 64 . . . . . . . . . . . . . . . . . . . . . . . . . . . Parts Recycled . | . . . . . . . . . . . . . . . . . . . . . . . . . . . . . . . . . Recycled Matter . | . . . . . . . . . . . . . . . . . . . . . . . . . . . . . . . . . Retrieved Matter . | . . . . . . . . . . . . . . . . . . . . . . . . . . . . . . . . . Retrieved Components 10 | . . . . . . . . . . . . . . . . . 10 . . . . . . . . . . . . . . . Parts Scanalyzed . | . . . . . . . . . . . . . . . . . . . . . . . . . . . . . . . . . Part Schematics Acquired . | . . . . . . . . . . . . . . . . . . . . . . . . . . . . . . . . . Parts Damaged . | . . . . . . . . . . . . . . . . . . . . . . . . . . . . . . . . . Bothacking | -11 -10 -10 -10 -9 -8 -7 -7 -7 -7 -6 -6 -6 -6 -6 -5 -5 -5 -5 -5 -5 -4 -4 -4 -4 -4 -4 -3 -3 -3 -2 -2 -2 ------------ Run | Scr Mat Min Exi Min Mat Fac Low Low Dat Pro Fac Low Low Zio Pro Fac Ext Cet Arc Hub Fac Was Fac Upp Upp Zhi Pro Res Tes Res Qua Sec Used RIF Installer . | . . . . . . . . . . . . . . . . . . . . . . . . . . . . . . . . . Robots Hacked 2 | . . . . . . . . . . . 2 . . . . . . . . . . . . . . . . . . . . . Non-combat 2 | . . . . . . . . . . . 2 . . . . . . . . . . . . . . . . . . . . . Combat . | . . . . . . . . . . . . . . . . . . . . . . . . . . . . . . . . . Robot Hacks Applied 2 | . . . . . . . . . . . 2 . . . . . . . . . . . . . . . . . . . . . find_fabricator 2 | . . . . . . . . . . . 2 . . . . . . . . . . . . . . . . . . . . . Relay Couplers Released . | . . . . . . . . . . . . . . . . . . . . . . . . . . . . . . . . . Fabnet Peak Effective % . | . . . . . . . . . . . . . . . . . . . . . . . . . . . . . . . . . Robots Rewired 11 | . . . . . . . . . . . . . . . . . 11 . . . . . . . . . . . . . . . Allies Hacked . | . . . . . . . . . . . . . . . . . . . . . . . . . . . . . . . . . Hacks Repelled . | . . . . . . . . . . . . . . . . . . . . . . . . . . . . . . . . . Allies | -11 -10 -10 -10 -9 -8 -7 -7 -7 -7 -6 -6 -6 -6 -6 -5 -5 -5 -5 -5 -5 -4 -4 -4 -4 -4 -4 -3 -3 -3 -2 -2 -2 -------- Run | Scr Mat Min Exi Min Mat Fac Low Low Dat Pro Fac Low Low Zio Pro Fac Ext Cet Arc Hub Fac Was Fac Upp Upp Zhi Pro Res Tes Res Qua Sec Total Allies 55 | . . 1 . 3 . . . . . . 2 . . 4 . 3 21 5 . 3 . . 3 . . . . 7 . 3 . . Largest Group 13 | . . 1 1 3 2 . . . . . 2 . . 4 4 3 13 10 6 6 . . 2 2 . . . 5 . 3 . . Highest-Rated Group 690 | . . 31 31 40 32 . . . . . 52 . . 150 150 84 493 690 432 432 . . 206 198 . . . 309 . 243 . . Highest-Rated Ally 269 | . . 31 31 16 16 . . . . . 26 . . 39 39 28 159 159 96 96 . . 103 103 . . . 269 . 81 . . Zionite Dispatches 9 | . . . . . . . . . . . . . . . . 1 1 . . 1 . . 2 . . . . 3 . 1 . . Heavy 2 | . . . . . . . . . . . . . . . . . 1 . . . . . 1 . . . . . . . . . Light 2 | . . . . . . . . . . . . . . . . . . . . 1 . . . . . . . 1 . . . . Fire 2 | . . . . . . . . . . . . . . . . 1 . . . . . . . . . . . 1 . . . . Hacker 1 | . . . . . . . . . . . . . . . . . . . . . . . . . . . . . . 1 . . Experimental 1 | . . . . . . . . . . . . . . . . . . . . . . . . . . . . 1 . . . . Infowar Resupply 1 | . . . . . . . . . . . . . . . . . . . . . . . 1 . . . . . . . . . Total Orders 4 | . . . . 2 . . . . . . . . . . . . . 1 . . . . 1 . . . . . . . . . STAY 2 | . . . . 1 . . . . . . . . . . . . . 1 . . . . . . . . . . . . . . FOLLOW 1 | . . . . 1 . . . . . . . . . . . . . . . . . . . . . . . . . . . . DROP 1 | . . . . . . . . . . . . . . . . . . . . . . . 1 . . . . . . . . . Ally Attacks 369 | . . 1 . 10 34 . . . . . . . . . . . 130 83 22 59 . . 5 3 . . . 15 . 7 . . Total Damage 11135 | . . 21 . 63 497 . . . . . . . . . . . 2767 2105 884 2320 . . 266 71 . . . 1573 . 568 . . Kills 76 | . . 1 . 2 3 . . . . . . . . . . . 23 13 4 12 . . 5 1 . . . 7 . 5 . . Allies Corrupted 4 | . . . . . . . . . . . . . . . . . . . . 3 . . . . . . . 1 . . . . Allies Melted . | . . . . . . . . . . . . . . . . . . . . . . . . . . . . . . . . . Intel | -11 -10 -10 -10 -9 -8 -7 -7 -7 -7 -6 -6 -6 -6 -6 -5 -5 -5 -5 -5 -5 -4 -4 -4 -4 -4 -4 -3 -3 -3 -2 -2 -2 ------- Run | Scr Mat Min Exi Min Mat Fac Low Low Dat Pro Fac Low Low Zio Pro Fac Ext Cet Arc Hub Fac Was Fac Upp Upp Zhi Pro Res Tes Res Qua Sec Robot Analysis Total 5 | . 1 . . . . . . . . . . . . . . . . . . . . . . . . 4 . . . . . . Derelict Logs Recovered 10 | . . 1 . 1 . . 2 . . 2 . . . . 2 . . . . . . . . . 2 . . . . . . . Drone Launches . | . . . . . . . . . . . . . . . . . . . . . . . . . . . . . . . . . Drone Recoveries . | . . . . . . . . . . . . . . . . . . . . . . . . . . . . . . . . . Decoded 0b10 Intel 138 | . . . . . . . . . . . . . . . . . . . . . . . 41 . . . . 34 29 21 3 10 Items 84 | . . . . . . . . . . . . . . . . . . . . . . . 41 . . . . 25 18 . . . Garrisons 2 | . . . . . . . . . . . . . . . . . . . . . . . . . . . . 1 1 . . . Patrols 18 | . . . . . . . . . . . . . . . . . . . . . . . . . . . . 1 7 7 2 1 Investigations 2 | . . . . . . . . . . . . . . . . . . . . . . . . . . . . . 1 . 1 . Reinforcements 3 | . . . . . . . . . . . . . . . . . . . . . . . . . . . . . 2 . . 1 Guards 29 | . . . . . . . . . . . . . . . . . . . . . . . . . . . . 7 . 14 . 8 Zionite Intel Received 25 | . . . . . . . . . . . . . . . . . 1 . . 3 4 . 1 . . . . 4 3 6 . 3 Branch Access 1 | . . . . . . . . . . . . . . . . . . . . . . . 1 . . . . . . . . . Emergency Access 3 | . . . . . . . . . . . . . . . . . . . . . 1 . . . . . . . . 1 . 1 Guard Positions 1 | . . . . . . . . . . . . . . . . . . . . . . . . . . . . . . 1 . . Component Stockpiles 2 | . . . . . . . . . . . . . . . . . . . . . . . . . . . . 1 1 . . . Prototype Stockpiles 3 | . . . . . . . . . . . . . . . . . . . . . . . . . . . . 1 . 1 . 1 Component Schematics 2 | . . . . . . . . . . . . . . . . . . . . 1 . . . . . . . . . 1 . . Prototype Schematics 5 | . . . . . . . . . . . . . . . . . 1 . . 1 1 . . . . . . 1 1 . . . Unaware Analyses 1 | . . . . . . . . . . . . . . . . . . . . . . . . . . . . . . 1 . . Trap Installations 2 | . . . . . . . . . . . . . . . . . . . . . 1 . . . . . . . . 1 . . Active Terminals 2 | . . . . . . . . . . . . . . . . . . . . . 1 . . . . . . . 1 . . . Active Garrisons 2 | . . . . . . . . . . . . . . . . . . . . . . . . . . . . 1 . . . 1 Depthwide Sectors/-1 1 | . . . . . . . . . . . . . . . . . . . . 1 . . . . . . . . . . . . Exploration | -11 -10 -10 -10 -9 -8 -7 -7 -7 -7 -6 -6 -6 -6 -6 -5 -5 -5 -5 -5 -5 -4 -4 -4 -4 -4 -4 -3 -3 -3 -2 -2 -2 ------------- Run | Scr Mat Min Exi Min Mat Fac Low Low Dat Pro Fac Low Low Zio Pro Fac Ext Cet Arc Hub Fac Was Fac Upp Upp Zhi Pro Res Tes Res Qua Sec Turns Passed 13135 | 100 1422 1636 623 572 1711 403 214 67 29 259 318 110 52 434 139 132 797 295 75 325 177 31 586 135 341 47 226 383 349 728 163 256 Spaces Moved 15591 | 55 525 601 252 413 598 915 551 217 90 627 583 341 193 967 423 283 1066 163 69 742 314 88 800 211 593 125 233 405 637 1694 365 452 Core 92 | 4 . . . . . . . . . . . . . . . . . . . . . . . . . . 73 . . . . 15 Treads 1831 | 51 525 601 150 . 504 . . . . . . . . . . . . . . . . . . . . . . . . . . . Legs . | . . . . . . . . . . . . . . . . . . . . . . . . . . . . . . . . . Wheels 609 | . . . 102 413 94 . . . . . . . . . . . . . . . . . . . . . . . . . . . Hover . | . . . . . . . . . . . . . . . . . . . . . . . . . . . . . . . . . Flight 13059 | . . . . . . 915 551 217 90 627 583 341 193 967 423 283 1066 163 69 742 314 88 800 211 593 125 160 405 637 1694 365 437 Fastest Speed 18 | 50 160 240 130 130 130 31 31 31 31 31 27 27 27 27 27 27 26 26 26 26 34 34 32 32 32 32 32 22 22 18 23 39 Average Speed 60 | 152 228 258 243 130 228 31 31 31 31 31 29 27 27 27 27 27 27 26 26 26 34 34 35 36 33 32 87 33 28 31 33 41 Slowest Speed 320 | 160 240 320 320 130 320 31 31 31 31 31 31 27 27 27 27 27 100 26 26 100 34 34 109 37 37 32 200 37 100 34 107 125 Overloaded Moves 43 | . . . . . . . . . . . . . . . . . . . . 6 . . . . . . 17 1 2 17 . . Propulsion Burnouts . | . . . . . . . . . . . . . . . . . . . . . . . . . . . . . . . . . Robots Hopped 81 | . . . . . . 3 . . . . 11 . . . . 3 9 . . 21 1 . 2 . . . 3 . 4 8 10 6 Cave-ins Triggered . | . . . . . . . . . . . . . . . . . . . . . . . . . . . . . . . . . Time Travels 1 | . . . . . . . . . 1 . . . . . . . . . . . . . . . . . . . . . . . Exploration Rate (%) 54 | 4 75 99 61 79 43 22 83 36 73 71 15 56 41 87 63 10 81 70 78 79 8 77 23 44 73 60 54 19 77 52 58 27 Regions Visited 32 Branch Regions 22 Pre-discovered Areas 15 | . 1 1 1 . 1 . . . 1 1 . . . 1 1 . . . . 4 . . . . . 3 . . . . . . Known Exits Taken 25 | . . . . . 1 1 1 1 1 1 1 1 1 1 1 1 1 1 1 1 . . 1 1 1 1 1 1 1 1 1 . Unknown Exits Taken 5 | 1 1 1 1 1 . . . . . . . . . . . . . . . . . . . . . . . . . . . . Scrap Searched 22 | . . 1 . 1 . . 2 1 . 3 . 2 1 4 4 . . . . . . . . . 2 . 1 . . . . . Spaces Dug 152 | . . . . 1 . 14 14 . . 6 6 4 . . 5 6 . . . 7 12 . 22 1 6 . 2 6 5 31 . 4 Terrain Destroyed 350 | . . 5 . 11 . 14 14 . . 6 6 4 . . 5 6 . . . 181 12 . 29 1 6 . 2 6 5 31 . 6 Melee 151 | . . . . . . 14 14 . . 6 6 4 . . 5 6 . . . 7 12 . 22 1 6 . 2 6 5 31 . 4 Projectile 3 | . . . . 1 . . . . . . . . . . . . . . . . . . . . . . . . . . . 2 AOE 196 | . . 5 . 10 . . . . . . . . . . . . . . . 174 . . 7 . . . . . . . . . Terrain Rammed . | . . . . . . . . . . . . . . . . . . . . . . . . . . . . . . . . . Walls Destroyed . | . . . . . . . . . . . . . . . . . . . . . . . . . . . . . . . . . Machines Disabled . | . . . . . . . . . . . . . . . . . . . . . . . . . . . . . . . . . Actions | -11 -10 -10 -10 -9 -8 -7 -7 -7 -7 -6 -6 -6 -6 -6 -5 -5 -5 -5 -5 -5 -4 -4 -4 -4 -4 -4 -3 -3 -3 -2 -2 -2 --------- Run | Scr Mat Min Exi Min Mat Fac Low Low Dat Pro Fac Low Low Zio Pro Fac Ext Cet Arc Hub Fac Was Fac Upp Upp Zhi Pro Res Tes Res Qua Sec Total 18384 | 68 675 640 263 438 809 999 572 216 90 679 681 350 192 1139 437 322 1527 359 124 819 359 88 1050 260 723 131 250 627 779 1827 388 503 Wait 1869 | . 39 1 . 18 45 32 7 . . 37 59 1 . 161 8 33 401 159 55 71 25 . 193 45 117 . 10 175 92 66 12 7 Move 15416 | 55 524 600 251 412 597 908 550 216 89 626 563 340 192 966 422 277 1048 162 68 707 312 87 795 210 592 124 227 404 628 1679 344 441 Hop 64 | . . . . . . 3 . . . . 8 . . . . 2 8 . . 13 1 . 2 . . . 2 . 4 6 10 5 Pick Up 169 | 7 29 7 3 1 26 15 1 . . 2 8 . . 4 . . . 5 . 1 1 1 13 . . 2 3 7 11 7 7 8 Fast Attach 84 | 5 2 1 . . 16 1 . . . . 3 2 . 1 1 1 4 1 . . 1 . 7 1 4 2 . 10 5 6 5 5 Attach 61 | 1 2 1 1 . 7 7 . . 1 . 4 . . 2 . 2 . 1 . . 5 . 4 . . 1 . 4 3 4 4 7 Detach 20 | . . . . . . . . . . . 2 . . . . 1 2 . . 2 2 . 3 . 1 . 2 . . 1 1 3 Swap 44 | . 3 3 3 2 5 1 . . . 2 2 2 . 2 . . 1 . 1 8 . . 1 . . . . 2 2 4 . . Drop 139 | . 17 3 5 1 34 9 . . . 4 6 1 . 3 1 . 1 3 . . . . 5 . 1 2 3 9 11 4 2 14 Fire 185 | . 54 23 . 4 70 . . . . . . . . . . . . 26 . 1 . . 2 . . . . . . . . 5 Melee 267 | . . . . . . 23 14 . . 8 26 4 . . 5 6 38 2 . 13 12 . 25 4 8 . 3 14 14 37 3 8 Ram . | . . . . . . . . . . . . . . . . . . . . . . . . . . . . . . . . . Kick . | . . . . . . . . . . . . . . . . . . . . . . . . . . . . . . . . . Crush 15 | . 5 1 . . 9 . . . . . . . . . . . . . . . . . . . . . . . . . . . Escape Stasis 33 | . . . . . . . . . . . . . . . . . 18 . . . . . . . . . . 2 9 4 . . Rewire 6 | . . . . . . . . . . . . . . . . . 6 . . . . . . . . . . . . . . . Trap 12 | . . . . . . . . . . . . . . . . . . . . 3 . . . . . . . . . 9 . . Miscellaneous . | . . . . . . . . . . . . . . . . . . . . . . . . . . . . . . . . . Route ------- -11/Scrapyard -10/Materials (discovered 4 exits: [*Mat x2] / *Min x2) -10/Mines (discovered 3 exits: [*Mat x2] / *Exi) -10/Exiles -9/Mines (discovered 2 exits: *Mat x2) -8/Materials -7/Factory -7/Lower Caves -7/Lower Caves -7/Data Miner -6/Proximity Caves -6/Factory (discovered 3 exits: Fac / *Low x2) -6/Lower Caves -6/Lower Caves (discovered 2 exits: *Fac / *Zio) -6/Zion -5/Proximity Caves -5/Factory (discovered 4 exits: Fac / [Upp] / *Ext x2) -5/Extension (discovered 3 exits: *Fac x2 / *Cet) -5/Cetus -5/Archives (discovered 3 exits: *Fac / *Hub x2) -5/Hub_04(d) (discovered 4 exits: *Fac x4) -4/Factory -4/Waste -4/Factory (discovered 3 exits: *Res / *Upp x2) -4/Upper Caves -4/Upper Caves (discovered 2 exits: *Res / *Zhi) -4/Zhirov -3/Proximity Caves -3/Research (discovered 3 exits: *Res / [*Arm] / *Tes) -3/Testing -2/Research (discovered 2 exits: *Acc / *Qua) -2/Quarantine -2/Section 7 History --------- Turn | Location | Event 52 | -11/Scrapyard | Discovered new exit (range 15) 101 | -11/Scrapyard | Entered Materials 307 | -10/Materials | Build established: Mutant 309 | -10/Materials | Discovered new exit (range 6) 714 | -10/Materials | Discovered new exit (range 14) 923 | -10/Materials | Discovered new exit (range 15) 1265 | -10/Materials | Discovered new exit (range 10) 1523 | -10/Materials | Entered Mines 1821 | -10/Mines | Learned Materials trap positions 1905 | -10/Mines | Discovered new exit (range 15) 2262 | -10/Mines | Discovered new exit (range 13) 2489 | -10/Mines | Met a Derelict shopkeep closing up shop 2697 | -10/Mines | Found a hidden stash of uninstalled traps 2747 | -10/Mines | Escorted by a lone wolf Derelict 2767 | -10/Mines | Learned location of Storage (-9) 3146 | -10/Mines | Deemed a non-threat by the Exiles lab entrance 3146 | -10/Mines | Discovered new exit (range 5) 3159 | -10/Mines | Entered Exiles 3159 | -10/Exiles | Accompanied by 1 ally 3246 | -10/Exiles | Met 8R-AWN 3291 | -10/Exiles | Met EX-HEX 3419 | -10/Exiles | Met EX-DEC 3435 | -10/Exiles | Learned location of Zion (-6) 3489 | -10/Exiles | Met EX-BIN 3534 | -10/Exiles | Aligned with FarCom system 3537 | -10/Exiles | Given EX-Vault access code 3614 | -10/Exiles | Opened EX-Vault 3640 | -10/Exiles | Found Lightpack 2.0 3649 | -10/Exiles | Found Superbattery 3655 | -10/Exiles | Found Chronowheel 3686 | -10/Exiles | Warned to stay clear of 0b10 Research branches 3765 | -10/Exiles | Discovered new exit (range 14) 3782 | -10/Exiles | Stole three prototypes: Lightpack 2.0, Superbattery, Chronowheel 3782 | -10/Exiles | Entered Mines 3786 | -9/Mines | Learned Materials stockpile data 3786 | -9/Mines | Assisted by bots powering up and referring to "LRC-V3" 3795 | -9/Mines | Met a Derelict bent on vengeance 3803 | -9/Mines | Assembled infested the area 3808 | -9/Mines | Assisted by a Guerilla fighting off Assembled 3865 | -9/Mines | Core integrity fell below 50% 4329 | -9/Mines | Discovered new exit (range 11) 4340 | -9/Mines | Discovered new exit (range 14) 4354 | -9/Mines | Entered Materials 4354 | -8/Materials | Accompanied by 2 allies 4354 | -8/Materials | Evolved 4 slots: Propulsion x1, Utility x3 4355 | -8/Materials | Loaded intel: 12 trap records 4439 | -8/Materials | Repaired Lgt. Treads 4923 | -8/Materials | Repaired Imp. Light Armor Plating 5198 | -8/Materials | Build established: Scavenger-Skirmisher 5804 | -8/Materials | Discovered new exit (range 18) 6063 | -8/Materials | Identified exit to Factory 6065 | -8/Materials | Entered Factory 6065 | -7/Factory | Evolved 2 slots: Propulsion x1, Utility x1 6067 | -7/Factory | FarCom data flow suspended 6207 | -7/Factory | Discovered new exit (range 12) 6269 | -7/Factory | Identified exit to Lower Caves 6357 | -7/Factory | Build established: Hauler-Scout 6468 | -7/Factory | Entered Lower Caves 6669 | -7/Lower Caves | Discovered new exit (range 8) 6676 | -7/Lower Caves | Learned location of 1 exit from Factory 6682 | -7/Lower Caves | Identified exit to Lower Caves 6682 | -7/Lower Caves | Entered another Lower Caves area 6682 | -7/Lower Caves | Spotted 4B-9YP(f) 6682 | -7/Lower Caves | Spotted QR-TTC(f) 6683 | -7/Lower Caves | Encountered a Master Thief 6683 | -7/Lower Caves | Encountered a Master Thief 6728 | -7/Lower Caves | Spotted B-75 Beast 6745 | -7/Lower Caves | Discovered new exit (range 15) 6749 | -7/Lower Caves | Identified exit to Data Miner 6749 | -7/Lower Caves | Entered Data Miner 6749 | -7/Data Miner | Discovered new exit (range 6) 6755 | -7/Data Miner | Met Data Miner 6762 | -7/Data Miner | Learned location of Section 7 (-2) 6762 | -7/Data Miner | Acquired the access code to Warlord's prototype stash 6767 | -7/Data Miner | Received God Mode back door access code from Data Miner 6769 | -7/Data Miner | Activated Chronowheel 6769 | -7/Data Miner | Spacetime reconverged on an earlier point 6778 | -7/Data Miner | Identified exit to Proximity Caves 6778 | -7/Data Miner | Entered Proximity Caves 7021 | -6/Proximity Caves | Discovered new exit (range 11) 7024 | -6/Proximity Caves | Identified exit to Factory 7037 | -6/Proximity Caves | Entered Factory 7037 | -6/Factory | Evolved 2 slots: Propulsion x1, Utility x1 7038 | -6/Factory | Identified exit to Lower Caves 7039 | -6/Factory | Identified exit to Factory 7179 | -6/Factory | Incoming investigation squad redirected 7217 | -6/Factory | Garrison activated, responded to threat 7283 | -6/Factory | Discovered exit to Lower Caves (range 10) 7315 | -6/Factory | Incoming investigation squad redirected 7331 | -6/Factory | Fabricated Imp. Trap Extractor (x2) 7355 | -6/Factory | Incoming investigation squad redirected 7355 | -6/Factory | Entered Lower Caves 7355 | -6/Lower Caves | Accompanied by 1 ally 7375 | -6/Lower Caves | Encountered a Warlord checkpoint 7432 | -6/Lower Caves | Discovered new exit (range 13) 7436 | -6/Lower Caves | Identified exit to Lower Caves 7445 | -6/Lower Caves | Found Alien Artifact 7445 | -6/Lower Caves | Identified Core Expander 7445 | -6/Lower Caves | Installed Core Expander, added new Weapon slot 7465 | -6/Lower Caves | Entered another Lower Caves area 7467 | -6/Lower Caves | Discovered exit to Factory (range 14) 7487 | -6/Lower Caves | Spotted B-75 Beast 7511 | -6/Lower Caves | Spotted AO-U2V(f) 7511 | -6/Lower Caves | Spotted CQ-BGW(f) 7511 | -6/Lower Caves | Discovered new exit (range 12) 7511 | -6/Lower Caves | Spotted GK-JV6(f) 7515 | -6/Lower Caves | Encountered a Master Thief 7517 | -6/Lower Caves | Identified exit to Zion 7517 | -6/Lower Caves | Entered Zion 7531 | -6/Zion | Discovered new exit (range 16) 7536 | -6/Zion | Found Prototype Processor 7559 | -6/Zion | Identified Exp. Terrain Scan Processor 7568 | -6/Zion | Found CR-A16's Pointy Stick 7656 | -6/Zion | Imprinted 7658 | -6/Zion | Declared Zion's savior 7739 | -6/Zion | Found Prototype Device 7752 | -6/Zion | Found Prototype Special Weapon 7817 | -6/Zion | Build established: Hauler-Sprinter 7821 | -6/Zion | Identified exit to Proximity Caves 7951 | -6/Zion | Entered Proximity Caves 7951 | -5/Proximity Caves | Accompanied by 4 allies 8067 | -5/Proximity Caves | Learned 4 Factory zone layouts 8074 | -5/Proximity Caves | Learned location of Warlord (-5) 8084 | -5/Proximity Caves | Discovered exit to Factory (range 15) 8090 | -5/Proximity Caves | Entered Factory 8090 | -5/Factory | Evolved 2 slots: Utility x2 8091 | -5/Factory | Identified exit to Extension 8092 | -5/Factory | Identified exit to Factory 8138 | -5/Factory | Discovered new exit (range 18) 8207 | -5/Factory | Zion Fire squad teleported in 8208 | -5/Factory | Discovered exit to Extension (range 10) 8222 | -5/Factory | Entered Extension 8222 | -5/Extension | Accompanied by 3 allies 8244 | -5/Extension | Incoming investigation squad redirected 8254 | -5/Extension | Rescued a captive Derelict 8254 | -5/Extension | Rescued a captive Derelict 8263 | -5/Extension | Zion Heavy squad teleported in 8287 | -5/Extension | Retrieved Zion intel report: Prototype Schematics 8293 | -5/Extension | Rescued a captive Derelict 8357 | -5/Extension | Rescued a captive Derelict 8566 | -5/Extension | Spotted B-75 Beast 8621 | -5/Extension | Spotted B-75 Beast 8635 | -5/Extension | Discovered exit to Factory (range 9) 8640 | -5/Extension | Destroyed B-75 Beast 8645 | -5/Extension | Build established: Hauler-Scout 8653 | -5/Extension | Destroyed B-75 Beast 8679 | -5/Extension | Rescued a captive Derelict 8685 | -5/Extension | Rescued a captive Derelict 8763 | -5/Extension | Rescued a captive Derelict 8769 | -5/Extension | Rescued A7 8897 | -5/Extension | Discovered new exit (range 22) 8898 | -5/Extension | Discovered exit to Factory (range 20) 8919 | -5/Extension | Identified exit to Cetus 9019 | -5/Extension | Entered Cetus 9019 | -5/Cetus | Accompanied by 10 allies (A7) 9024 | -5/Cetus | Acquired a Cetus Manufacturing Module code from A7 9048 | -5/Cetus | Spotted Cetus Guard 9048 | -5/Cetus | Spotted Cetus Guard 9059 | -5/Cetus | Spotted Cetus Guard 9063 | -5/Cetus | Spotted Cetus Guard 9067 | -5/Cetus | Allies destroyed Cetus Guard 9080 | -5/Cetus | Allies destroyed Cetus Guard 9102 | -5/Cetus | Started Cetus Manufacturing Module 9126 | -5/Cetus | Escorted A7 to Cetus Mainframe 9127 | -5/Cetus | Manufactured an Enhanced Grunt 9141 | -5/Cetus | Discovered new exit (range 22) 9152 | -5/Cetus | Manufactured an Enhanced Grunt 9177 | -5/Cetus | Manufactured an Enhanced Grunt 9183 | -5/Cetus | Found Prototype Protection 9202 | -5/Cetus | Manufactured an Enhanced Grunt 9227 | -5/Cetus | Manufactured an Enhanced Grunt 9257 | -5/Cetus | Destroyed A7 9260 | -5/Cetus | Extracted ID and sensor layout for unrecognized location from A7's data core 9292 | -5/Cetus | Identified exit to Archives 9308 | -5/Cetus | Cetus Manufacturing Module disabled 9314 | -5/Cetus | Entered Archives 9314 | -5/Archives | Accompanied by 6 allies 9357 | -5/Archives | Discovered new exit (range 22) 9359 | -5/Archives | Discovered exit to Factory (range 21) 9360 | -5/Archives | Discovered new exit (range 17) 9369 | -5/Archives | Identified exit to Hub_04(d) 9389 | -5/Archives | Entered Hub_04(d) 9389 | -5/Hub_04(d) | Accompanied by 6 allies 9414 | -5/Hub_04(d) | Discovered exit to Factory (range 19) 9473 | -5/Hub_04(d) | Discovered exit to Factory (range 16) 9500 | -5/Hub_04(d) | Discovered exit to Factory (range 7) 9548 | -5/Hub_04(d) | Retrieved Zion intel report: Prototype Schematics 9549 | -5/Hub_04(d) | Zion Light squad teleported in 9557 | -5/Hub_04(d) | Retrieved Zion intel report: Component Schematics 9609 | -5/Hub_04(d) | Discovered exit to Factory (range 16) 9620 | -5/Hub_04(d) | Identified RU-N14's Throwing Claymores 9622 | -5/Hub_04(d) | Network Hub disabled 9631 | -5/Hub_04(d) | Spotted Lightning 9631 | -5/Hub_04(d) | Spotted Lightning 9640 | -5/Hub_04(d) | Spotted Lightning 9641 | -5/Hub_04(d) | Spotted Lightning 9644 | -5/Hub_04(d) | Spotted Lightning 9644 | -5/Hub_04(d) | Spotted Lightning 9664 | -5/Hub_04(d) | Retrieved Zion intel report: Depthwide Sectors/-1 9689 | -5/Hub_04(d) | First assault squad dispatched 9713 | -5/Hub_04(d) | System corruption reached 10% 9714 | -5/Hub_04(d) | Entered Factory 9714 | -4/Factory | Evolved 2 slots: Power x1, Propulsion x1 9739 | -4/Factory | Retrieved Zion intel report: Active Terminals 9744 | -4/Factory | Lost 8 parts (1p3n4u) 9764 | -4/Factory | Retrieved Zion intel report: Trap Installations 9771 | -4/Factory | Retrieved Zion intel report: Emergency Access 9831 | -4/Factory | Retrieved Zion intel report: Prototype Schematics 9891 | -4/Factory | Manually triggered Chute Trap 9891 | -4/Factory | Sucked down chute 9891 | -4/Factory | Entered Waste 9901 | -4/Waste | Spotted C-40 Crusher 9902 | -4/Waste | Spotted C-40 Crusher 9902 | -4/Waste | Spotted C-40 Crusher 9906 | -4/Waste | EMP discharged 9906 | -4/Waste | Spotted C-40 Crusher 9907 | -4/Waste | Spotted C-40 Crusher 9908 | -4/Waste | Spotted C-40 Crusher 9919 | -4/Waste | Discovered new exit (range 10) 9922 | -4/Waste | Identified exit to Factory 9922 | -4/Waste | Entered Factory 9953 | -4/Factory | Zion Infowar Resupply teleported in 9976 | -4/Factory | Spotted B-86 Titan 9978 | -4/Factory | System corruption reached 10% 9998 | -4/Factory | Build established: Hauler-Mutant 10071 | -4/Factory | Fabricated Cld. Field Propulsion Drive (x1) 10095 | -4/Factory | Incoming investigation squad redirected 10110 | -4/Factory | Incoming investigation squad redirected 10128 | -4/Factory | Discovered new exit (range 4) 10129 | -4/Factory | Identified exit to Research 10130 | -4/Factory | Incoming investigation squad redirected 10258 | -4/Factory | Retrieved Zion intel report: Branch Access 10258 | -4/Factory | Identified exit to Upper Caves 10259 | -4/Factory | Zion Heavy squad teleported in 10422 | -4/Factory | First assault squad dispatched 10449 | -4/Factory | Incoming assault squad redirected 10508 | -4/Factory | Entered Upper Caves 10508 | -4/Upper Caves | Accompanied by 2 allies 10565 | -4/Upper Caves | Encountered a Warlord checkpoint 10613 | -4/Upper Caves | Spotted B-86 Titan 10619 | -4/Upper Caves | Revealed the true nature of CR-A16's Pointy Stick 10622 | -4/Upper Caves | Destroyed B-86 Titan 10641 | -4/Upper Caves | Discovered new exit (range 6) 10643 | -4/Upper Caves | Identified exit to Upper Caves 10643 | -4/Upper Caves | Entered another Upper Caves area 10647 | -4/Upper Caves | Discovered exit to Research (range 10) 10648 | -4/Upper Caves | Learned Research emergency access door positions 10649 | -4/Upper Caves | Encountered a Warlord checkpoint 10664 | -4/Upper Caves | Spotted B-86 Titan 10671 | -4/Upper Caves | Destroyed B-86 Titan 10702 | -4/Upper Caves | Lost 3 parts (1p2u) 10774 | -4/Upper Caves | Learned Research terminal intel 10983 | -4/Upper Caves | Discovered new exit (range 7) 10984 | -4/Upper Caves | Identified exit to Zhirov 10984 | -4/Upper Caves | Entered Zhirov 10984 | -4/Zhirov | Discovered new exit (range 3) 10990 | -4/Zhirov | Met Zhirov 10997 | -4/Zhirov | Learned location of Quarantine (-2) 10997 | -4/Zhirov | Learned location of Testing (-3) 10999 | -4/Zhirov | Zhirov requested help retrieving the SGEMP Prototype 11005 | -4/Zhirov | Found Alien Artifact 11005 | -4/Zhirov | Identified Integrated Dissipator 11005 | -4/Zhirov | Installed Integrated Dissipator, increased core heat dissipation (+20) 11018 | -4/Zhirov | Found Alien Artifact 11031 | -4/Zhirov | Identified exit to Proximity Caves 11031 | -4/Zhirov | Entered Proximity Caves 11058 | -3/Proximity Caves | Attracted the attention of an 0b10 checkpoint 11235 | -3/Proximity Caves | Discovered exit to Research (range 15) 11257 | -3/Proximity Caves | Entered Research 11257 | -3/Research | Evolved 2 slots: Utility x2 11259 | -3/Research | Loaded intel: 22 terminal locations 11274 | -3/Research | Retrieved Zion intel report: Prototype Stockpiles 11290 | -3/Research | Retrieved Zion intel report: Component Stockpiles 11292 | -3/Research | Found Prototype Device 11292 | -3/Research | Identified Exp. Thermal Shield 11324 | -3/Research | Retrieved Zion intel report: Prototype Schematics 11330 | -3/Research | Found Antimissile System 11340 | -3/Research | Found Antimissile System 11422 | -3/Research | Fabricated Cld. Field Propulsion Drive (x1) 11487 | -3/Research | Fabricated Cld. Field Propulsion Drive (x1) 11494 | -3/Research | Spotted B-86 Titan 11495 | -3/Research | Retrieved Zion intel report: Active Garrisons 11496 | -3/Research | Zion Experimental squad teleported in 11530 | -3/Research | Destroyed B-86 Titan 11608 | -3/Research | Found Prototype Protection 11617 | -3/Research | Spotted B-86 Titan 11622 | -3/Research | Destroyed B-86 Titan 11627 | -3/Research | Zion Light squad teleported in 11628 | -3/Research | Zion Fire squad teleported in 11629 | -3/Research | Discovered new exit (range 12) 11636 | -3/Research | Discovered new exit (range 15) 11636 | -3/Research | Discovered new exit (range 5) 11640 | -3/Research | Identified exit to Testing 11640 | -3/Research | Entered Testing 11658 | -3/Testing | Identified Zio. Shade Armor 11683 | -3/Testing | Found Prototype Energy Gun 11683 | -3/Testing | Identified Warp Gun 11718 | -3/Testing | Retrieved Zion intel report: Active Terminals 11867 | -3/Testing | Retrieved Zion intel report: Prototype Schematics 11873 | -3/Testing | Discovered new exit (range 13) 11880 | -3/Testing | Found Prototype Device 11880 | -3/Testing | Identified Exp. Hardlight Generator 11884 | -3/Testing | Identified exit to Research 11910 | -3/Testing | Found Prototype Ballistic Cannon 11920 | -3/Testing | Retrieved Zion intel report: Component Stockpiles 11945 | -3/Testing | Found Prototype Hackware 11953 | -3/Testing | Identified Exp. Hacking Suite 11955 | -3/Testing | Incoming investigation squad redirected 11989 | -3/Testing | Entered Research 11989 | -2/Research | Evolved 2 slots: Propulsion x2 12032 | -2/Research | Incoming investigation squad redirected 12142 | -2/Research | Found Prototype Slashing Weapon 12142 | -2/Research | Identified Vibroblade 12224 | -2/Research | Discovered new exit (range 16) 12245 | -2/Research | Identified exit to Access 12255 | -2/Research | Retrieved Zion intel report: Prototype Stockpiles 12256 | -2/Research | Zion Hacker squad teleported in 12289 | -2/Research | First assault squad dispatched 12317 | -2/Research | Incoming assault squad redirected 12425 | -2/Research | Retrieved Zion intel report: Guard Positions 12466 | -2/Research | Retrieved Zion intel report: Component Schematics 12489 | -2/Research | Build established: Hauler-Sprinter 12489 | -2/Research | Search patrols dispatched 12501 | -2/Research | Retrieved Zion intel report: Emergency Access 12510 | -2/Research | Retrieved Zion intel report: Unaware Analyses 12519 | -2/Research | Retrieved Zion intel report: Trap Installations 12641 | -2/Research | Spotted B-90 Cyclops 12713 | -2/Research | Spotted B-90 Cyclops 12713 | -2/Research | Discovered new exit (range 15) 12716 | -2/Research | Identified exit to Quarantine 12717 | -2/Research | Entered Quarantine 12741 | -2/Quarantine | Found Alien Impact Weapon 12801 | -2/Quarantine | Found Alien Artifact 12816 | -2/Quarantine | Lost 18 parts (2p9n6u1w) 12827 | -2/Quarantine | Cryocooling Duct disabled 12842 | -2/Quarantine | Ambient heat levels rising (+20) 12842 | -2/Quarantine | Non-combat units ordered to evacuate 12847 | -2/Quarantine | Spotted Fortress 12849 | -2/Quarantine | Core integrity fell below 50% 12875 | -2/Quarantine | Discovered new exit (range 6) 12879 | -2/Quarantine | Identified exit to Section 7 12880 | -2/Quarantine | Entered Section 7 12888 | -2/Section 7 | Identified Omega Cannon 12890 | -2/Section 7 | Lost 4 parts (1p2n1u) 12898 | -2/Section 7 | Retrieved Zion intel report: Emergency Access 12922 | -2/Section 7 | Retrieved Zion intel report: Active Garrisons 12969 | -2/Section 7 | Retrieved Zion intel report: Prototype Stockpiles 13003 | -2/Section 7 | Found Alien Artifact 13013 | -2/Section 7 | Spotted S7 Guard 13022 | -2/Section 7 | Found Alien Artifact 13022 | -2/Section 7 | Identified Integrated Thermoelectric Network 13022 | -2/Section 7 | Installed Integrated Thermoelectric Network, gained heat-energy exchange potential 13095 | -2/Section 7 | Found Alien Artifact 13103 | -2/Section 7 | Spotted B-90 Cyclops 13122 | -2/Section 7 | Spotted Alpha 7 13125 | -2/Section 7 | Identified Integrity Redistributor 13125 | -2/Section 7 | Used Integrity Redistributor, redistributed integrity to core (+52) 13125 | -2/Section 7 | Spotted Alpha 7 13129 | -2/Section 7 | Core integrity fell below 20% 13136 | -2/Section 7 | Destroyed by G-73 Enforcer with Phase Gun Last Messages --------------- 13125_ Integrity redistributed to core (+52). 13126_ Dropped Alien Artifact. 13127_ Penetrated by Slug. 13127_ Impulse Thruster Array destroyed. 13127_ Penetrated by Slug. 13127_ Slug penetrates Wall. 13127_ U-05 Engineer destroyed. 13127_ Dropped Missile Launcher. 13127_ Dropped Adv. Trap Extractor. 13128_ System corrupted: Heat flow error (+270). 13128_ Dropped Lrg. Storage Unit. 13128_ Dropped Adv. Component Analysis Suite. 13129_ >> DECODED: Security location. 13129_ Dropped Vibroblade. 13130_ ALERT: Rogue bot located, Programmers report to Section 7 Zone 3X. 13130_ Penetrated by Slug. 13131_ CR-A16's Behemoth Slayer destroyed. 13132_ K-01 Serf collects debris. 13133_ Slug penetrates Wall. 13136_ Detecting system override signal. Map ----- +----------------------------------------------------+ | ?????????????????????????????????????????????????? | | ?????????????????????????????????????????????????? | | ?????????????????????+???????????????????????????? | | ?????????????????????????????????????????????????? | | ?????????????????????????????????????????????????? | | ?????????????????????????????????????????????????? | | ?????????????????????????????????????????????????? | | ?????????????????????????????????????????????????? | | ?????????????????????????????????????????????????? | | ?????????????????????????????????????????????????? | | ??????????????????????? ???????????????????????? | | ?????????????????????# ???????????????????????? | | ?????????????????????# ???????????????????????? | | ?????????????????????# ???????????????????????? | | ?????????????????????# ???????????????????????? | | ?????????????????????# "??????????????????????? | | ????????????????????## "??????????????????????? | | ????????????????????#" "??????????????????????? | | ????????????????????#" ""???#?????????????????? | | ????????????????????#" """ #?????????????????? | | ????????????????????#T """ #?????????????????? | | ????????????????????#" """ #?????????????????? | | ????????????????????#" #?????????????????? | | ????????????????H???#" """ #?????????????????? | | ?????????????????????# """ #?????????????????? | | ?????????????????????#A @""" =#?????????????????? | | ?????????????????????# """ #?????????????????? | | ?????????????????????# """ #?????????????????? | | ?????????????????????# """ #?????????????????? | | ?????????????????????# ^ """ ###???????????????? | | ?????????????????????# ss #???????????????? | | ?????????????????????# """ #???????????????? | | ?????????????????????# """ #???????????????? | | ?????????????????????# """ #???????????????? | | ?????????????????????# """ #???????????????? | | ?????????????????????# b """ #???????????????? | | ??????############+###g """ ##### ??????????? | | ???? = g s""" /?????????? | | ????? gg/!! /?????????? | | ????? """ """ *|]]! /?????????? | | ????? """ """ !%!!]!! /?????????? | | #??????# """ """*=#############/##### ??????????? | | ???????# !%#"""###??????? ??????????????? | | ???????# =!#"T #"##????????""????????????? | | ####???# #??????????????????????? | | #???# #??????????????????????? | | ##### #??????????????????????? | | " * #??????????????????????? | | ###### "" "" " " !!= #??????????????????????? | | #????# ""T"" " " !!= #??????????????????????? | +----------------------------------------------------+ Best States ------------- Heat Dissipation 69 Energy Generation 37 Energy Capacity 635 Matter Stores 500 Matter Capacity 500 Sight Range 22 Robot Scan Range 18 Terrain Scan Range 24 Terrain Scan Density 1010 Cloak Strength 3 Additional Mass Support 16 Armor Coverage 450 Resistance: KI 30 Resistance: TH 30 Resistance: EX 30 Resistance: EM 30 Resistance: I 30 Resistance: S 30 Resistance: P 30 Utility Shielding 66 Evasion (%) 74 Recoil Reduction 3 Offensive Hacking 16 Authchip Count 3 Trap Extractor Capacity 6 Item Schematics ----------------- Huge Storage Unit | -10/Materials | Hacked Transport Network Coupler | -10/Materials | Hacked Imp. Trap Extractor | -7/Factory | Hacked Combat Drone Bay | -7/Data Miner | Free Lgt. Regenerative Plating | -7/Data Miner | Free Cld. Aerolev Unit | -7/Data Miner | Free Exp. Targeting Computer | -7/Data Miner | Free Cld. Plasma Cannon | -7/Data Miner | Free Cmb. Gravmag System | -7/Data Miner | Free Imp. Recalibrator | -7/Data Miner | Free Imp. Plasma Cutter | -7/Data Miner | Free Nuclear Pulse Array | -7/Data Miner | Free Myomer Leg | -7/Data Miner | Free Riot Gun | -6/Zion | Free Battle Cannon | -6/Zion | Free Flamer | -6/Zion | Free Ripper | -6/Zion | Free Lgt. Neutrino Core | -5/Extension | Z-intel Plasma Sword | -5/Extension | Z-intel Prc. Matter Filter | -5/Extension | Z-intel Cld. Pulse Rifle | -5/Extension | Z-intel Prc. Rocket Launcher | -5/Extension | Z-intel Imp. KE Penetrator | -5/Extension | Z-intel Thermal Defense Suite | -5/Extension | Z-intel Cold Fusion Reactor | -5/Extension | Z-intel Imp. Heavy Laser | -5/Extension | Z-intel Imp. Energy Well | -5/Extension | Z-intel Cld. Gravmag System | -5/Extension | Z-intel Gravity Neutralizer | -5/Extension | Z-intel Prc. Energy Filter | -5/Hub_04(d) | Z-intel Imp. Airjet | -5/Hub_04(d) | Z-intel Enh. Coil Gun | -5/Hub_04(d) | Z-intel Imp. Heavy Machine Gun | -5/Hub_04(d) | Z-intel Tiamat Missile Launcher | -5/Hub_04(d) | Z-intel Enh. Fission Core | -5/Hub_04(d) | Z-intel Com. Ion Cannon | -5/Hub_04(d) | Z-intel Exp. Heat Sink | -5/Hub_04(d) | Z-intel Enh. Nuclear Core | -5/Hub_04(d) | Z-intel Hvy. Proton Missile Launcher | -5/Hub_04(d) | Z-intel Enh. Flexi-carbon Leg | -5/Hub_04(d) | Z-intel Fusion Reactor | -5/Hub_04(d) | Z-intel Enh. Gauss Cannon | -5/Hub_04(d) | Z-intel Hvy. Phase Cannon | -5/Hub_04(d) | Z-intel Hcp. Storage Unit | -5/Hub_04(d) | Z-intel Corruption Screen | -5/Hub_04(d) | Z-intel Component Analysis Suite | -5/Hub_04(d) | Z-intel Shield Generator | -5/Hub_04(d) | Z-intel Imp. Weapon Shielding | -5/Hub_04(d) | Z-intel Hpw. Tractor Beam | -5/Hub_04(d) | Z-intel Imp. Signal Interpreter | -5/Hub_04(d) | Z-intel Triangulator | -5/Hub_04(d) | Z-intel Lrg. Storage Unit | -5/Hub_04(d) | Z-intel Imp. Powered Armor | -5/Hub_04(d) | Z-intel Imp. Heavy Armor Plating | -5/Hub_04(d) | Z-intel Hacking Suite | -5/Hub_04(d) | Z-intel EM Disruption Field | -5/Hub_04(d) | Z-intel Impact Mace | -4/Factory | Z-intel Proton Burst Cannon | -4/Factory | Z-intel Exp. Flexi-carbon Leg | -4/Factory | Z-intel Exp. Cooling System | -4/Factory | Z-intel Cld. Plasma Rifle | -4/Factory | Z-intel Adv. Dynamic Insulation System | -4/Factory | Z-intel Imp. Matter Compressor | -4/Factory | Z-intel Cld. Field Propulsion Drive | -4/Factory | Z-intel Adv. EM Disruption Field | -4/Factory | Z-intel Adv. Myomer Leg | -4/Factory | Z-intel Lgt. Antimatter Cannon | -4/Factory | Z-intel Enh. Armored Leg | -4/Factory | Z-intel Assault Drone Bay | -4/Zhirov | Free Exp. Optical Array | -4/Zhirov | Free Imp. Arc Thrower | -4/Zhirov | Free Imp. Matter Neutralizer | -3/Research | Z-intel Exp. Energy Well | -3/Research | Z-intel Exp. Signal Interpreter | -3/Research | Z-intel Nanosword | -3/Research | Z-intel Exp. Power Amplifier | -3/Research | Z-intel Adv. Thermal Defense Suite | -3/Research | Z-intel Adv. Variable Charge Gun | -3/Research | Z-intel Com. Tesla Bomb Launcher | -3/Research | Z-intel Cld. Antigrav System | -3/Testing | Z-intel Exp. Melee Analysis Suite | -3/Testing | Z-intel Spectral Analyzer | -3/Testing | Z-intel Plasma Lance | -3/Testing | Z-intel Imp. Lightning Gun | -3/Testing | Z-intel Exp. EM Disruption Field | -3/Testing | Z-intel Exp. Shield Generator | -3/Testing | Z-intel Hdn. Centrium Wheel | -3/Testing | Z-intel Ionic Axe | -3/Testing | Z-intel Cld. Phase Cannon | -3/Testing | Z-intel Cld. Impulse Thruster | -3/Testing | Z-intel Exp. Focal Shield | -3/Testing | Z-intel Imp. Medium Armor Plating | -2/Research | Z-intel Imp. Utility Shielding | -2/Research | Z-intel Com. Battery | -2/Research | Z-intel Imp. Fusion Compressor | -2/Research | Z-intel Imp. System Shield | -2/Research | Z-intel Biometal Heavy Treads | -2/Research | Z-intel Imp. System Restoration Module | -2/Research | Z-intel Adv. Sensor Array | -2/Research | Z-intel Biometal Leg | -2/Research | Z-intel Imp. Transmission Jammer | -2/Research | Z-intel Imp. Shock Absorption System | -2/Research | Z-intel Imp. System Guard | -2/Research | Z-intel Robot Schematics ------------------ A-15 Conveyor | -7/Data Miner | Free E-15 Imp | -7/Data Miner | Free W-25 Informer | -7/Data Miner | Free B-48 Gladiator | -7/Data Miner | Free G-50 Soldier | -7/Data Miner | Free Fabricated ------------ Imp. Trap Extractor | x2 | -6/Factory | Authchip Cld. Field Propulsion Drive | x1 | -4/Factory | Authchip Cld. Field Propulsion Drive | x1 | -3/Research | Authchip Cld. Field Propulsion Drive | x1 | -3/Research | Authchip Alien Tech Used ----------------- Core Expander Integrated Dissipator Integrated Thermoelectric Network Integrity Redistributor Achievements -------------- None Challenges ------------ None Game ------ Seed HackingCoordinationArchive Manual? 0 Play Time 02:16:33 Cumulative 658.5 hours Start 2023.01.25 @ 18:16:58 End 2023.01.25 @ 20:39:30 Sessions 1 Manual Loads 0 Difficulty Rogue Special Mode None Game No. 591 Rogue 591 Adventurer 0 Explorer 0 Win Type - Total 31 Types 14/2/9/2/0/0/2/1/1 Lore% 97 Gallery% 95 Achievement% 82 Wizard Run 0 Options --------- ASCII 0 Keyboard 0 Movement Arrows Keybinds 0 Fullscreen 1 Font 18/Smallcaps Map View 76x50 Tactical HUD 1 Map Filters NONE Filters NONE Steam 1 RUN: 2cc64cc6-8504-473b-bcb5-c6820e4b3c06